Workbook

Sheet 선택문헌특성(14편)
A1: # | B1: Year | C1: 1저자 | D1: 연구수행국가 | E1: 연구대상자 | F1: 중재검사 | G1: 참고표준/ 비교검사 | I1: 연구결과
E2: 정의(대상자 수) | F2: 방법/기기 | G2: 목표질환 | H2: 방법/기준 | I2: 진단정확도 | J2: 상관관계 | K2: 경과관찰
A3: 1 | B3: 2021 | C3: Berchicci | D3: 이탈리아 | E3: 비쇼그렌 건성안(40안), 이식편대숙주질환(GVHD) (45안) | F3: InflammaDry (Rapid Pathogen Screening, Inc, Sarasota, FL), | G3: DED | H3: OSDI, Tear osmolarity, TBUT, Cornea stain, Conjunctiva stain | J3: ○
A4: 2 | B4: 2021 | C4: Lee(이승현) | D4: 대한민국 | E4: 백내장수술 환자(106) | F4: InflammaDry (Quidel, San Diego, CA, USA) | G4: 건성안 | H4: OSDI | J4: ○
A5: 3 | B5: 2021 | C5: Lee(이유현) | D5: 대한민국 | E5: 건성안 증상 (320) | F5: InflammaDry (Quidel Corporation, San Diego, CA, USA) | G5: severity of dry eye | H5: OSDI, VAS, TBUT, Schirmer score, Meibomian gland dysfunction, Conjunctival staining, Corneal staining | J5: ○
A6: 4 | B6: 2021 | C6: Ryu | D6: 대한민국 | E6: 건성안 (137) | F6: InflammaDry (Rapid Pathogen Screening, Inc., Sarasota, FL) | G6: - | H6: - | K6: ○
A7: 5 | B7: 2021 | C7: Soifer | D7: 미국 | E7: 건성안 (67) | F7: InflammaDry (Quidel Corporation, San Diego, CA) | G7: - | H7: - | K7: ○
A8: 6 | B8: 2020 | C8: Jun | D8: 대한민국 | E8: 건성안 (188) | F8: Inflammadry (Quidel Corporation, San Diego, CA, USA) | G8: - | H8: tear meniscus parameter (각 TMH, TMA, TMD), OSDI, tBUT 등 | J8: ○
A9: 7 | B9: 2018 | C9: Gupta | D9: 미국 | E9: 백내장 평가를 위해 내원한 환자(120) | F9: Inflammadry (Rapid Pathogen Screening, Inc.). | G9: ocular surface dysfunction | H9: Osmolarity, OSDI 또는 SANDE | J9: ○
A10: 8 | B10: 2018 | C10: Park | D10: 대한민국 | E10: 건성안 (40), 건강대조군 (20) | F10: InflammaDry (Rapid Pathogen Screening, Inc., Sarasota, FL). | G10: - | H10: - | I10: ○ | J10: ○ | K10: ○
A11: 9 | B11: 2016 | C11: Chan | D11: 홍콩 | E11: 라식 후 건성안 (14안), 건강대조군 (34안) | F11: InflammaDry (RPS InflammaDry, Sarasota, Florida, USA) | G11: post -LASIK dry eye | H11: staining, OSDI, TBUT, Total MMP-9 (sandwich-ELISA) | I11: ○
A12: 10 | B12: 2016 | C12: Messmer | D12: 독일 | E12: 건성안 (47), 건강대조군 (54) | F12: InflammaDry (Rapid Pathogen Screening, Inc, Sarasota, FL) | G12: DED | H12: 4개 검사 중 3개 기준 만족시(OSDI, TBUT, Schirmer, staining) | I12: ○
A13: 11 | B13: 2016 | C13: Sambursky | D13: 미국 | E13: 건성안 증상 (78) | F13: InflammaDry (RPS Diagnostics; Sarasota, FL, USA) | G13: - | H13: - | K13: ○
A14: 12 | B14: 2015 | C14: Schargus | D14: 독일 | E14: 고령의 잠재적 건성안 (20) | F14: InflammaDry (Rapid Pathogen Screening, Inc, Sarasota, FL) | G14: - | H14: Tear film osmolarity (TearLab Corp), MMP-9 ELISA (quantitative) | J14: ○
A15: 13 | B15: 2014 | C15: Sambursky | D15: 미국 | E15: 건성안 의심환자(237) | F15: InflammaDry | G15: dry eye | H15: Schirmer, TBUT, staining, (±OSDI) | I15: ○
A16: 14 | B16: 2013 | C16: Sambursky | D16: 미국 | E16: 건성안 의심환자(143), 건강대조군(63) | F16: InflammaDry (Rapid Pathogen Screening, Inc) | G16: dry eye | H16: 4개 검사 모두 만족시(OSDI, Schirmer, TBUT, staining) | I16: ○

Sheet 진단정확도
B1: Year | C1: 1저자 | D1: 연구대상자 | H1: 검사법 | L1: 논문에 보고된 진단정확도 | Z1: [자동계산] 계산된 진단정확도
D2: 환자군 | F2: 대조군 | H2: 분류 1=중재, 2=비교 | I2: 상세 | J2: 임계값 | K2: 단위 | L2: TP | M2: FP | N2: FN | O2: TN | P2: Sn | Q2: Sp | R2: PPV | S2: NPV | T2: LR+ | U2: LR- | V2: 검사정확도 | W2: AUC | Y2: ROC | Z2: TP | AA2: FP | AB2: FN | AC2: TN | AD2: Sn | AE2: Sp | AF2: PPV | AG2: NPV | AH2: LR+ | AI2: LR- | AJ2: 검사정확도
D3: 정의 | E3: N | F3: 정의 | G3: N | L3: N | M3: N | N3: N | O3: N | P3: % | Q3: % | R3: % | S3: % | T3: % | U3: % | V3: % | W3: 값 | X3: (95% CI) | Y3: 값 | Z3: N | AA3: N | AB3: N | AC3: N
B4: 2016 | C4: Chan (2016) | D4: post-LASIK dry eyes | E4: 14 | F4: normal | G4: 34 | H4: 1 | I4: InflammaDry | J4: 40 | K4: ng/mL | L4: 8 | M4: 0 | N4: 6 | O4: 34 | P4: 57.1 | Z4: 8 | AA4: 0 | AB4: 6 | AC4: 34 | AD4: =Z4/(Z4+AB4) -> 0.5714285714 | AE4: =AC4/(AA4+AC4) -> 1 | AF4: =Z4/(Z4+AA4) -> 1 | AG4: =AC4/(AB4+AC4) -> 0.85 | AH4: =AD4/(1-AE4) ->  | AI4: =(1-AD4)/AE4 -> 0.4285714286 | AJ4: =(Z4+AC4)/(Z4+AA4+AB4+AC4) -> 0.875
B5: 2016 | C5: Chan (2016) | D5: post-LASIK dry eyes | E5: 14 | F5: normal | G5: 34 | H5: 2 | I5: Tear film MMP-9 (sandwich-ELISA) | J5: 40 | K5: ng/mL | L5: 7 | M5: - | N5: 7 | O5: - | Z5: 7 | AA5: - | AB5: 7 | AC5: - | AD5: =Z5/(Z5+AB5) -> 0.5
B6: 2016 | C6: Messmer (2016) | D6: 건성안 | E6: 47 | F6: 건강대조군 | G6: 54 | H6: 1 | I6: InflammaDry | J6: 40 | K6: ng/mL | L6: 19 | M6: 3 | N6: 28 | O6: 51 | P6: 40.4 | Q6: 94.4 | Z6: 19 | AA6: 3 | AB6: 28 | AC6: 51 | AD6: =Z6/(Z6+AB6) -> 0.4042553191 | AE6: =AC6/(AA6+AC6) -> 0.9444444444 | AF6: =Z6/(Z6+AA6) -> 0.8636363636 | AG6: =AC6/(AB6+AC6) -> 0.6455696203 | AH6: =AD6/(1-AE6) -> 7.276595745 | AI6: =(1-AD6)/AE6 -> 0.6307884856 | AJ6: =(Z6+AC6)/(Z6+AA6+AB6+AC6) -> 0.6930693069
B7: 2014 | C7: Sambursky (2014) | D7: 건성안(OSDI 포함 4개) | E7: 157 | F7: 대조군 | G7: 80 | H7: 1 | I7: InflammaDry | J7: 40 | K7: ng/mL | L7: 127 | M7: 2 | N7: 30 | O7: 78 | P7: 81 | Q7: 98 | Z7: =E7*P7/100 -> 127.17 | AA7: =G7-AC7 -> 1.6 | AB7: =E7-Z7 -> 29.83 | AC7: =G7*Q7/100 -> 78.4 | AD7: =Z7/(Z7+AB7) -> 0.81 | AE7: =AC7/(AA7+AC7) -> 0.98 | AF7: =Z7/(Z7+AA7) -> 0.9875747457 | AG7: =AC7/(AB7+AC7) -> 0.7243832579 | AH7: =AD7/(1-AE7) -> 40.5 | AI7: =(1-AD7)/AE7 -> 0.193877551 | AJ7: =(Z7+AC7)/(Z7+AA7+AB7+AC7) -> 0.8673839662
B8: 2014 | C8: Sambursky (2014) | D8: 건성안(OSDI 미포함 3개) | E8: 146 | F8: 대조군 | G8: 91 | H8: 1 | I8: InflammaDry | J8: 40 | K8: ng/mL | L8: 126 | M8: 3 | N8: 20 | O8: 88 | P8: 86 | Q8: 97 | Z8: 126 | AA8: 3 | AB8: 20 | AC8: 88 | AD8: =Z8/(Z8+AB8) -> 0.8630136986 | AE8: =AC8/(AA8+AC8) -> 0.967032967 | AF8: =Z8/(Z8+AA8) -> 0.976744186 | AG8: =AC8/(AB8+AC8) -> 0.8148148148 | AH8: =AD8/(1-AE8) -> 26.17808219 | AI8: =(1-AD8)/AE8 -> 0.1416562889 | AJ8: =(Z8+AC8)/(Z8+AA8+AB8+AC8) -> 0.9029535865
B9: 2013 | C9: Sambursky (2013) | D9: 건성안 | E9: 143 | F9: 건강대조군 | G9: 63 | H9: 1 | I9: InflammaDry | J9: 40 | K9: ng/mL | L9: 121 | M9: 4 | N9: 22 | O9: 59 | P9: 85 | Q9: 94 | R9: 97 | S9: 73 | Z9: 121 | AA9: 4 | AB9: 22 | AC9: 59 | AD9: 0.8461538462 | AE9: 0.9365079365 | AF9: 0.968 | AG9: 0.7283950617 | AH9: =AD9/(1-AE9) -> 13.32692308 | AI9: =(1-AD9)/AE9 -> 0.1642764016 | AJ9: 0.8737864078
